bitfinex-derivatives/quotes_BTCF0:USTF0_20250728
["timestamp","ask_amount","ask_price","bid_price","bid_amount"]
[1753704509570,0.71637899,118940.0,118930.0,2.0823429]
[1753704509771,0.71637899,118940.0,118930.0,1.4111029]
[1753704509970,0.71637899,118940.0,118930.0,2.0824229]
[1753704511263,0.71637899,118940.0,118930.0,2.0822629]
[1753704512971,0.71637899,118940.0,118930.0,1.3891289]
[1753704513171,0.71637899,118940.0,118930.0,2.0602889]
[1753704515567,0.3801642,118940.0,118930.0,2.08108599]
[1753704515766,0.71637899,118940.0,118930.0,2.08108599]
[1753704518168,0.58533899,118940.0,118930.0,2.08108599]
[1753704518373,0.1996942,118940.0,118930.0,2.41730078]
[1753704518974,0.1275542,118940.0,118930.0,2.41730078]
[1753704520565,0.53607952,118970.0,118930.0,2.24914188]
[1753704520766,0.66485027,118970.0,118960.0,0.2290678]
[1753704520970,0.83294387,118970.0,118960.0,0.8997878]
[1753704521170,0.71138027,118970.0,118960.0,0.8997878]
[1753704522372,0.11867,118970.0,118960.0,0.87958845]
[1753704522580,0.06749048,118990.0,118980.0,0.4746169]
[1753704522779,0.27280483,119020.0,119010.0,0.4218272]
[1753704523074,0.86111928,119020.0,119010.0,0.80511199]
[1753704523468,0.19011928,119020.0,119010.0,0.80511199]
[1753704523682,0.86127928,119020.0,119010.0,0.80511199]
[1753704523869,0.19011928,119020.0,119010.0,0.80511199]
[1753704524270,0.86127928,119020.0,119010.0,0.80511199]
[1753704524471,0.99231928,119020.0,119010.0,0.80511199]
[1753704524675,1.09927212,119020.0,119010.0,0.80711199]
[1753704526080,1.09927212,119020.0,119010.0,0.4238272]
[1753704526480,1.03884928,119020.0,119010.0,0.4238272]
[1753704526881,1.03884928,119020.0,119010.0,0.76004199]
[1753704529583,1.03884928,119020.0,119010.0,0.76604199]
[1753704529772,0.36768928,119020.0,119010.0,0.76604199]
[1753704529977,1.03892928,119020.0,119010.0,0.81311199]
[1753704531082,1.03892928,119020.0,119010.0,0.76604199]
[1753704531987,0.36768928,119020.0,119010.0,0.76604199]
[1753704532187,1.03876928,119020.0,119010.0,0.76604199]
[1753704533184,1.03868928,119020.0,119010.0,0.76604199]
[1753704534295,0.36768928,119020.0,119010.0,0.76604199]
[1753704534591,1.05198206,119020.0,119010.0,0.76604199]
[1753704534790,1.05198206,119020.0,119010.0,0.81449199]
[1753704534991,0.85225516,119020.0,119010.0,0.81510199]
[1753704535494,0.13472516,119020.0,119010.0,0.81510199]
[1753704535685,6e-08,119020.0,119010.0,0.81510199]
[1753704535885,0.62202476,119020.0,119010.0,0.81510199]
[1753704536090,0.20643059,119030.0,119020.0,0.293813]
[1753704536280,0.98645,119030.0,119020.0,0.81695779]
[1753704537488,0.99490207,119030.0,119020.0,0.81695779]
[1753704537693,0.32370207,119030.0,119020.0,0.82295779]
[1753704537895,0.99486207,119030.0,119020.0,0.82295779]
[1753704538496,0.99486207,119030.0,119020.0,0.82495779]
[1753704538997,0.32370207,119030.0,119020.0,0.82495779]
[1753704539197,0.99478207,119030.0,119020.0,0.82495779]
[1753704539587,1.06213714,119030.0,119020.0,0.82495779]
[1753704539788,0.39105714,119030.0,119020.0,0.82495779]
[1753704539989,0.24653507,119030.0,119020.0,0.82495779]
[1753704540188,0.06739507,119030.0,119020.0,0.82495779]
[1753704540393,0.01584088,119030.0,119020.0,0.82495779]
[1753704540596,0.98621,119040.0,119030.0,0.4807289]
[1753704540797,0.98621,119040.0,119030.0,0.81694369]
[1753704540798,0.85018,119040.0,119030.0,0.81694369]
[1753704540996,0.98625,119040.0,119030.0,0.81694369]
[1753704542202,0.98625,119040.0,119030.0,0.82394369]
[1753704542401,0.31521,119040.0,119030.0,0.82394369]
[1753704542594,0.98613,119040.0,119030.0,0.82394369]
[1753704542795,1.05334246,119040.0,119030.0,0.82394369]
[1753704544600,0.38242246,119040.0,119030.0,0.82394369]
[1753704544807,1.05338246,119040.0,119030.0,0.82394369]
[1753704545301,1.05338246,119040.0,119030.0,0.2561089]
[1753704545694,1.05338246,119040.0,119030.0,0.3296589]
[1753704545909,1.05338246,119040.0,119030.0,0.4386689]
[1753704546203,1.05338246,119040.0,119030.0,0.82394369]
[1753704549111,1.05338246,119040.0,119030.0,0.4877289]
[1753704550306,0.38242246,119040.0,119030.0,0.4877289]
[1753704550506,1.05330246,119040.0,119030.0,0.4877289]
[1753704551916,1.05318246,119040.0,119030.0,0.4877289]
[1753704552212,1.05318246,119040.0,119030.0,0.82394369]
[1753704552408,1.05306246,119040.0,119030.0,0.8481849]
[1753704552611,1.05302246,119040.0,119030.0,0.8481849]
[1753704553016,0.38242246,119040.0,119030.0,0.8481849]
[1753704553310,1.05302246,119040.0,119030.0,0.8481849]
[1753704553710,1.05294246,119040.0,119030.0,0.8481849]
[1753704554719,0.38242246,119040.0,119030.0,0.8481849]
[1753704554914,1.05286246,119040.0,119030.0,0.8481849]
[1753704555213,0.38242246,119040.0,119030.0,0.8481849]
[1753704555417,1.05286246,119040.0,119030.0,0.8481849]
[1753704555919,1.05282246,119040.0,119030.0,0.8481849]
[1753704556917,1.05282246,119040.0,119030.0,0.51197011]
[1753704557112,1.05278246,119040.0,119030.0,0.51197011]
[1753704557312,1.05278246,119040.0,119030.0,0.8481849]
[1753704557611,1.05270246,119040.0,119030.0,0.8481849]
[1753704558212,0.38242246,119040.0,119030.0,0.51197011]
[1753704558407,1.05266246,119040.0,119030.0,0.8481849]
[1753704561717,0.38242246,119040.0,119030.0,0.8481849]
[1753704562718,1.05234246,119040.0,119030.0,0.8481849]
[1753704564014,0.71863725,119040.0,119030.0,0.19925011]
[1753704564219,1.38855725,119040.0,119030.0,0.19925011]
[1753704565026,1.38855725,119040.0,119030.0,0.32669011]
[1753704565525,1.55655205,119040.0,119030.0,0.25076011]
[1753704565824,1.38855725,119040.0,119030.0,0.25076011]
[1753704566626,1.38855725,119040.0,119030.0,0.32669011]
[1753704567424,1.38859725,119040.0,119030.0,0.32669011]
[1753704568430,0.71863725,119040.0,119030.0,0.32669011]
[1753704568618,0.71863725,119040.0,119030.0,0.51589011]
[1753704568818,1.38855725,119040.0,119030.0,0.51589011]
[1753704570329,0.38242246,119040.0,119030.0,0.8047149]
[1753704570527,1.05230246,119040.0,119030.0,0.8521049]
[1753704570723,0.38242246,119040.0,119030.0,0.87452261]
[1753704571330,0.38242246,119040.0,119030.0,1.54464261]
[1753704572525,0.38242246,119040.0,119030.0,1.5222249]
[1753704576433,0.06721246,119040.0,119030.0,1.5222249]
[1753704576736,0.19297,119050.0,119030.0,1.290876]
[1753704576935,0.32035,119050.0,119040.0,0.72550919]
[1753704577231,0.32035,119050.0,119040.0,0.69146919]
[1753704577434,0.32035,119050.0,119040.0,0.72550919]
[1753704578436,0.38077284,119050.0,119040.0,0.72550919]
[1753704579132,0.32930284,119050.0,119040.0,0.72550919]
[1753704579638,0.38077284,119050.0,119040.0,0.72550919]
[1753704580125,0.4496471,119050.0,119040.0,0.72850919]
[1753704580326,0.38922426,119050.0,119040.0,0.72850919]
[1753704581032,0.24149426,119050.0,119040.0,0.72850919]
[1753704581233,0.30944426,119050.0,119040.0,0.72850919]
[1753704581438,0.24149426,119050.0,119040.0,0.72850919]
[1753704582137,0.06891426,119050.0,119040.0,0.72850919]
[1753704582545,0.11411426,119050.0,119040.0,0.75271317]
[1753704582933,0.11411426,119050.0,119040.0,0.75071317]
[1753704583438,0.18042082,119070.0,119040.0,0.58371837]
[1753704583641,0.0452,119060.0,119050.0,1.0072535]
[1753704583942,0.33765371,119060.0,119050.0,1.45165214]
[1753704584135,0.32031,119060.0,119050.0,1.45165214]
[1753704584635,0.0452,119070.0,119060.0,0.1259685]
[1753704584832,0.31278284,119070.0,119060.0,1.34198049]
[1753704585030,0.32031,119070.0,119060.0,1.0057657]
[1753704585233,0.06046284,119080.0,119070.0,0.1679525]
[1753704585434,0.17262,119080.0,119070.0,0.8377925]
[1753704585642,0.32035,119080.0,119070.0,0.8377925]
[1753704585834,0.38729668,119080.0,119070.0,0.8377925]
[1753704587141,0.38729668,119080.0,119070.0,0.86608032]
[1753704587543,0.32035,119080.0,119070.0,0.86608032]
[1753704588230,0.32035,119080.0,119070.0,0.86808032]
[1753704588634,0.04524,119080.0,119070.0,0.86808032]
[1753704588834,0.0452,119090.0,119070.0,1.07832771]
[1753704589045,0.0452,119090.0,119080.0,0.32900509]
[1753704590341,0.0452,119090.0,119080.0,0.35323815]
[1753704590842,0.0452,119090.0,119080.0,0.35723815]
[1753704591145,0.0452,119090.0,119080.0,0.33500509]
[1753704591537,0.0452,119090.0,119080.0,0.2998857]
[1753704591843,0.65652479,119090.0,119080.0,0.9683321]
[1753704592838,0.65652479,119090.0,119080.0,0.9682521]
[1753704596241,0.65652479,119090.0,119080.0,0.2985721]
[1753704596642,0.65652479,119090.0,119080.0,0.2890021]
[1753704596842,0.65652479,119090.0,119080.0,0.9275421]
[1753704597644,0.65652479,119090.0,119080.0,0.2639721]
[1753704597946,0.65652479,119090.0,119080.0,0.9336121]
[1753704598151,0.65652479,119090.0,119080.0,0.9584921]
[1753704598340,0.65652479,119090.0,119080.0,0.2888521]
[1753704598544,0.65652479,119090.0,119080.0,0.9275421]
[1753704599652,0.65652479,119090.0,119080.0,0.9336121]
[1753704599953,0.65652479,119090.0,119080.0,0.9431821]
[1753704600846,0.65652479,119090.0,119080.0,0.9584921]
[1753704601041,0.65652479,119090.0,119080.0,0.9682121]
[1753704601945,0.65652479,119090.0,119080.0,0.9584921]
[1753704602145,0.82444919,119090.0,119080.0,0.9336121]
[1753704602949,0.82444919,119090.0,119080.0,0.2579021]
[1753704603155,0.82444919,119090.0,119080.0,0.9279021]
[1753704603356,0.82444919,119090.0,119080.0,0.2579021]
[1753704603553,0.82444919,119090.0,119080.0,0.9279821]
[1753704604563,1.16066398,119090.0,119080.0,0.2579021]
[1753704605152,0.82444919,119090.0,119080.0,0.2579021]
[1753704605362,1.16066398,119090.0,119080.0,0.2579021]
[1753704605553,0.82444919,119090.0,119080.0,0.2579021]
[1753704605755,0.4882344,119090.0,119080.0,0.2579021]
[1753704605959,0.82444919,119090.0,119080.0,0.2579021]
[1753704609860,0.82444919,119090.0,119080.0,0.2629821]
[1753704610358,0.82444919,119090.0,119080.0,0.2725521]
[1753704610560,0.82444919,119090.0,119080.0,0.2629821]
[1753704611762,0.82444919,119090.0,119080.0,0.2579021]
[1753704612756,0.82444919,119090.0,119080.0,0.1739384]
[1753704613359,0.82444919,119090.0,119080.0,0.1885884]
[1753704613962,0.82444919,119090.0,119080.0,0.2120284]
[1753704616563,0.82444919,119090.0,119080.0,0.2024584]
[1753704616763,0.65652479,119090.0,119080.0,0.2120284]
[1753704616964,0.82444919,119090.0,119080.0,0.2120284]
[1753704617364,0.65652479,119090.0,119080.0,0.2120284]
[1753704617770,0.65652479,119090.0,119080.0,0.23625839]
[1753704617971,0.82444919,119090.0,119080.0,0.23625839]
[1753704618370,0.82444919,119090.0,119080.0,0.2120284]
[1753704620871,0.65652479,119090.0,119080.0,0.2120284]
[1753704622677,0.71694763,119090.0,119080.0,0.2120284]
[1753704623274,0.65652479,119090.0,119080.0,0.2120284]
[1753704623475,0.71694763,119090.0,119080.0,0.2120284]
[1753704625176,0.65652479,119090.0,119080.0,0.2120284]
[1753704625377,0.71694763,119090.0,119080.0,0.2120284]
[1753704625675,0.65652479,119090.0,119080.0,0.2120284]
[1753704626377,0.71694763,119090.0,119080.0,0.2120284]
[1753704627780,0.88487203,119090.0,119080.0,0.2120284]
[1753704629377,0.71694763,119090.0,119080.0,0.2120284]
[1753704632178,0.71694763,119090.0,119080.0,0.2060684]
[1753704632577,0.65652479,119090.0,119080.0,0.23028974]
[1753704632777,0.65652479,119090.0,119080.0,0.06235134]
[1753704633281,0.65652479,119090.0,119080.0,0.06335134]
[1753704634177,0.65652479,119090.0,119080.0,0.06135134]
[1753704634483,0.65652479,119090.0,119080.0,0.06335134]
[1753704635977,0.65652479,119090.0,119080.0,0.05378134]
[1753704636378,0.65652479,119090.0,119080.0,0.06335134]
[1753704637293,0.32031,119090.0,119080.0,0.03122134]
[1753704637482,0.65652479,119090.0,119080.0,0.05012134]
[1753704637681,0.65652479,119090.0,119080.0,0.05969134]
[1753704638385,0.32031,119090.0,119080.0,0.39590457]
[1753704638784,0.32031,119090.0,119080.0,0.05968978]
[1753704639285,0.32031,119090.0,119080.0,0.12561327]
[1753704639486,0.65652479,119090.0,119080.0,0.12561327]
[1753704640586,0.65652479,119090.0,119080.0,0.79521327]
[1753704641485,0.65652479,119090.0,119080.0,0.81763098]
[1753704642386,0.65652479,119090.0,119080.0,0.79521327]
[1753704642580,0.65652479,119090.0,119080.0,0.81763098]
[1753704643580,0.65652479,119090.0,119080.0,0.79521327]
[1753704643780,0.65652479,119090.0,119080.0,0.79321327]
[1753704644479,0.0452,119090.0,119080.0,1.12942806]
[1753704644679,0.04914,119090.0,119080.0,1.38797806]
[1753704644980,0.04914,119090.0,119080.0,1.41039577]
[1753704645183,0.04918,119100.0,119080.0,1.41039577]
[1753704645384,0.34513,119100.0,119090.0,0.18337958]
[1753704645582,0.34513,119100.0,119090.0,0.20759936]
[1753704646278,0.34513,119100.0,119090.0,0.02421978]
[1753704646682,0.34513,119100.0,119090.0,0.03010381]
[1753704646887,0.34513,119100.0,119090.0,0.05252152]
[1753704647390,0.34513,119100.0,119090.0,0.03010381]
[1753704647991,0.04918,119100.0,119090.0,0.03010381]
[1753704648185,0.2236,119110.0,119090.0,0.40751581]
[1753704648394,0.27274,119100.0,119090.0,0.07130102]
[1753704648592,0.34509,119100.0,119090.0,0.74082102]
[1753704648890,0.68130479,119100.0,119090.0,0.07130102]
[1753704649186,0.68130479,119100.0,119090.0,0.03010381]
[1753704649392,0.68130479,119100.0,119090.0,0.70062381]
[1753704649985,0.68130479,119100.0,119090.0,0.69958381]
[1753704651494,0.68130479,119100.0,119090.0,0.03010381]
[1753704651697,0.68130479,119100.0,119090.0,0.69958381]
[1753704651892,0.34509,119100.0,119090.0,0.72631381]
[1753704652097,0.68130479,119100.0,119090.0,0.72631381]
[1753704652596,0.34509,119100.0,119090.0,0.72631381]
[1753704652794,0.34509,119100.0,119090.0,1.0625286]
[1753704652995,0.34509,119100.0,119090.0,1.0627286]
[1753704653295,0.34509,119100.0,119090.0,0.72651381]
[1753704653696,0.34987,119100.0,119090.0,0.72651381]
[1753704655092,0.04914,119100.0,119090.0,1.0627286]
[1753704656306,0.04914,119100.0,119090.0,1.3322286]
[1753704656496,0.04914,119100.0,119090.0,1.35464631]
[1753704656797,0.16277,119110.0,119100.0,0.25186]
[1753704656798,0.19218,119110.0,119100.0,0.25186]
[1753704657009,0.35495,119110.0,119100.0,0.31805638]
[1753704657209,0.35495,119110.0,119100.0,0.36003298]
[1753704659601,0.04794,119110.0,119100.0,0.36003298]
[1753704659797,0.21769,119110.0,119100.0,0.36003298]
[1753704660001,0.04794,119110.0,119100.0,0.69624777]
[1753704661105,0.04794,119110.0,119100.0,0.71866548]
[1753704661404,0.04794,119110.0,119100.0,0.88658558]
[1753704662005,0.69116479,119110.0,119100.0,1.01027419]
[1753704662399,0.69116479,119110.0,119100.0,0.92632239]
[1753704662708,0.69116479,119110.0,119100.0,0.23410468]
[1753704663000,0.35495,119110.0,119100.0,0.90386468]
[1753704663304,0.35495,119110.0,119100.0,0.90361041]
[1753704663305,0.69116479,119110.0,119100.0,0.90361041]
[1753704664299,0.69116479,119110.0,119100.0,0.19187591]
[1753704664502,0.85906109,119110.0,119100.0,0.19187591]
[1753704664691,0.85906109,119110.0,119100.0,0.86299591]
[1753704664995,0.85906109,119110.0,119100.0,0.69508551]
[1753704665201,0.85906109,119110.0,119100.0,0.86375601]
[1753704665396,0.85906109,119110.0,119100.0,0.69596551]
[1753704665595,0.85906109,119110.0,119100.0,0.86387601]
[1753704665999,0.85906109,119110.0,119100.0,0.69596551]
[1753704666207,0.85906109,119110.0,119100.0,0.1679105]
[1753704666401,0.85906109,119110.0,119100.0,0.86390616]
[1753704666794,0.85906109,119110.0,119100.0,0.19190616]
[1753704666996,0.85906109,119110.0,119100.0,0.86382616]
[1753704668295,0.85906109,119110.0,119100.0,0.19190616]
[1753704668496,0.85906109,119110.0,119100.0,0.86374616]
[1753704669111,0.69116479,119110.0,119100.0,0.86374616]
[1753704669310,0.69116479,119110.0,119100.0,0.8397505]
[1753704670105,0.69116479,119110.0,119100.0,0.1679105]
[1753704670306,0.69116479,119110.0,119100.0,0.8396705]
[1753704670508,0.69116479,119110.0,119100.0,0.86368742]
[1753704671404,0.69116479,119110.0,119100.0,0.86364742]
[1753704672007,0.69120479,119110.0,119100.0,0.86364742]
[1753704672714,0.69120479,119110.0,119100.0,0.8396305]
[1753704673013,0.85910119,119110.0,119100.0,0.8396305]
[1753704673411,0.69120479,119110.0,119100.0,0.8396305]
[1753704675811,0.35499,119110.0,119100.0,0.8396305]
[1753704676020,4e-05,119110.0,119100.0,1.20729529]
[1753704676214,4e-05,119110.0,119100.0,1.22729529]
[1753704676516,0.36747284,119120.0,119110.0,0.2193464]
[1753704676917,0.30705,119120.0,119110.0,0.2193464]
[1753704677607,4e-05,119120.0,119110.0,0.55556119]
[1753704677806,4e-05,119120.0,119110.0,0.2203464]
[1753704678306,0.04798,119120.0,119110.0,0.2203464]
[1753704678508,0.18583,119120.0,119110.0,0.2203464]
[1753704678712,0.09622,119120.0,119110.0,0.2203464]
[1753704678912,4e-05,119120.0,119110.0,0.55656119]
[1753704679115,0.04798,119120.0,119110.0,0.55656119]
[1753704679805,0.04798,119120.0,119110.0,0.2203464]
[1753704681205,0.04798,119120.0,119110.0,0.24427887]
[1753704682714,4e-05,119120.0,119110.0,0.24427887]
[1753704682923,4e-05,119120.0,119110.0,0.84999366]
[1753704683523,0.04799,119120.0,119110.0,0.51377887]
[1753704685718,0.62614479,119120.0,119110.0,0.51377887]
[1753704685918,0.69978479,119120.0,119110.0,0.51377887]
[1753704686315,0.36357,119120.0,119110.0,0.51377887]
[1753704686618,0.69978479,119120.0,119110.0,0.51377887]
[1753704686819,0.69978479,119120.0,119110.0,0.24427887]
[1753704689323,0.28993,119120.0,119110.0,0.24427887]
[1753704689524,0.19329,119120.0,119110.0,0.24427887]
[1753704690217,0.19329,119120.0,119110.0,0.2203464]
[1753704690416,0.19329,119120.0,119110.0,0.24426023]
[1753704690610,4e-05,119120.0,119110.0,0.24426023]
[1753704690820,4e-05,119120.0,119110.0,0.58047502]
[1753704691217,0.04799,119120.0,119100.0,0.22035938]
[1753704691420,0.24194,119080.0,119070.0,0.0449627]
[1753704691722,0.36353,119070.0,119060.0,0.2313312]
[1753704691924,0.69974479,119070.0,119060.0,0.18634135]
[1753704692227,0.69974479,119070.0,119060.0,0.85822135]
[1753704692922,0.69974479,119070.0,119060.0,0.18634135]
[1753704693124,0.69974479,119070.0,119060.0,0.85818135]
[1753704694922,0.75681282,119070.0,119060.0,0.85818135]
[1753704695429,0.36353,119070.0,119060.0,0.85818135]
[1753704695727,0.75681282,119070.0,119060.0,0.18634135]
[1753704696027,0.58653282,119070.0,119060.0,0.85898135]
[1753704696330,0.12692,119070.0,119060.0,0.85922135]
[1753704697122,0.12692,119070.0,119060.0,0.18634135]
[1753704697331,0.61684282,119070.0,119060.0,0.85950135]
[1753704697631,0.75681282,119070.0,119060.0,0.85950135]
[1753704698125,0.36353,119070.0,119060.0,0.85950135]
[1753704702230,0.36357,119070.0,119060.0,0.85950135]
[1753704703234,0.36357,119070.0,119060.0,0.88281107]
[1753704703436,0.75685282,119070.0,119060.0,0.88337107]
[1753704703825,0.75685282,119070.0,119060.0,0.88325107]
[1753704705829,0.08108,119070.0,119060.0,0.88325107]
[1753704706026,0.04799,119070.0,119060.0,0.88325107]
[1753704707334,0.08108,119070.0,119060.0,0.88325107]
[1753704707525,0.68321282,119070.0,119060.0,0.20965107]
[1753704707732,0.75685282,119070.0,119060.0,2.04553107]
[1753704708124,0.75685282,119070.0,119060.0,1.37169107]
[1753704708329,0.75685282,119070.0,119060.0,2.04553107]
[1753704708727,0.75685282,119070.0,119060.0,1.37169107]
[1753704709131,0.75685282,119070.0,119060.0,2.04541107]
[1753704710835,0.36357,119070.0,119060.0,2.04541107]
[1753704711938,0.36357,119070.0,119060.0,2.04626107]
[1753704716442,0.37651333,119070.0,119060.0,2.04626107]
[1753704716840,0.71208649,119070.0,119060.0,2.04626107]
[1753704718546,0.71208649,119070.0,119060.0,2.31576107]
[1753704719247,0.71208649,119070.0,119060.0,2.31556107]
[1753704719545,0.33557316,119080.0,119070.0,0.00136]
[1753704719842,0.64213316,119100.0,119090.0,0.1977746]
[1753704720041,0.64213316,119100.0,119090.0,0.8711746]
[1753704721649,0.64213316,119100.0,119090.0,0.89442676]
[1753704721844,0.69086316,119100.0,119090.0,0.89442676]
[1753704722150,0.69086316,119100.0,119090.0,0.8711746]
[1753704722344,0.69086316,119100.0,119090.0,0.89442687]
[1753704723050,0.35529,119100.0,119090.0,0.89442687]
[1753704723246,0.28696,119100.0,119090.0,1.24728003]
[1753704723439,0.04873,119100.0,119090.0,1.24728003]
[1753704723644,0.09698,119100.0,119090.0,1.24728003]
[1753704723842,0.35529,119100.0,119090.0,0.91170687]
[1753704724554,0.69086316,119100.0,119090.0,0.89474687]
[1753704724755,0.69086316,119100.0,119090.0,0.89482687]
[1753704726352,0.69086316,119100.0,119090.0,0.86582687]
[1753704726650,0.69086316,119100.0,119090.0,0.89346687]
[1753704726855,0.69086316,119100.0,119090.0,0.89482687]
[1753704727053,0.69086316,119100.0,119090.0,2.05686687]
[1753704727851,0.1598,119100.0,119090.0,2.05686687]
[1753704728155,0.22414,119100.0,119090.0,2.07414687]
[1753704728354,0.35529,119100.0,119090.0,2.07414687]
[1753704730648,0.3297958,119100.0,119090.0,2.07414687]
[1753704730861,4e-05,119140.0,119120.0,0.0839391]
[1753704731148,0.14389,119140.0,119130.0,0.65358316]
[1753704731352,0.14389,119140.0,119130.0,0.84470363]
[1753704731544,0.14389,119140.0,119130.0,0.87475695]
[1753704731945,0.15671228,119140.0,119130.0,0.87475695]
[1753704732152,1.15330316,119140.0,119130.0,0.53918379]
[1753704732349,1.15330316,119140.0,119130.0,0.50913047]
[1753704732350,0.47946316,119140.0,119130.0,0.50913047]
[1753704732550,1.1661221,119140.0,119130.0,0.50913047]
[1753704732747,1.36470316,119140.0,119130.0,0.50913047]
[1753704732948,1.36462316,119140.0,119130.0,0.50913047]
[1753704733346,1.02905,119140.0,119130.0,0.50913047]
[1753704733547,1.36462316,119140.0,119130.0,0.50913047]
[1753704734049,1.36462316,119140.0,119130.0,0.51577213]
[1753704735047,1.36462316,119140.0,119130.0,0.19776213]
[1753704735253,1.36522316,119140.0,119130.0,0.19112047]
[1753704735650,1.37802189,119140.0,119130.0,0.1678682]
[1753704735952,0.70366189,119140.0,119130.0,0.1678682]
[1753704736253,1.37806189,119140.0,119130.0,0.1678682]
[1753704737045,1.37814189,119140.0,119130.0,0.3452282]
[1753704737451,0.70366189,119140.0,119130.0,0.3452282]
[1753704737851,1.37806189,119140.0,119130.0,0.3452282]
[1753704738449,0.36808873,119140.0,119130.0,0.4381382]
[1753704738754,1.04240873,119140.0,119130.0,0.50898812]
[1753704738944,0.36808873,119140.0,119130.0,0.50898812]
[1753704739147,1.04240873,119140.0,119130.0,0.50898812]
[1753704739850,1.04240873,119140.0,119130.0,0.4858782]
[1753704740853,1.04240873,119140.0,119130.0,0.4381382]
[1753704741750,1.43515214,119140.0,119130.0,0.1678682]
[1753704742561,1.42235341,119140.0,119130.0,0.1678682]
[1753704742763,1.43514953,119140.0,119130.0,0.1678682]
[1753704742964,1.43510953,119140.0,119130.0,0.1678682]
[1753704744660,1.43510953,119140.0,119130.0,0.19100716]
[1753704746552,1.42231341,119140.0,119130.0,0.19100716]
[1753704747959,0.74803341,119140.0,119130.0,0.19100716]
[1753704748161,1.42215341,119140.0,119130.0,0.19100716]
[1753704748464,1.42207341,119140.0,119130.0,0.19100716]
[1753704748857,1.42199341,119140.0,119130.0,0.19100716]
[1753704750162,0.74803341,119140.0,119130.0,0.19100716]
[1753704750563,1.42187341,119140.0,119130.0,0.19100716]
[1753704751666,1.42183341,119140.0,119130.0,0.19100716]
[1753704751966,1.42175341,119140.0,119130.0,0.19100716]
[1753704754866,1.42163341,119140.0,119130.0,0.19100716]
[1753704757670,0.74803341,119140.0,119130.0,0.19100716]
[1753704757870,1.42143341,119140.0,119130.0,0.19100716]
[1753704758257,1.42131341,119140.0,119130.0,0.19100716]
[1753704758769,0.74803341,119140.0,119130.0,0.19100716]
[1753704758969,1.42127341,119140.0,119130.0,0.19100716]
[1753704759768,1.42119341,119140.0,119130.0,0.19100716]
[1753704760571,0.74803341,119140.0,119130.0,0.19100716]
[1753704760769,1.36392685,119140.0,119130.0,0.19100716]
[1753704761272,0.69056685,119140.0,119130.0,0.19100716]
[1753704761573,1.36428685,119140.0,119130.0,0.53747716]
[1753704761873,0.69056685,119140.0,119130.0,0.53747716]
[1753704762073,1.36432685,119140.0,119130.0,0.55991699]
[1753704762672,1.36432685,119140.0,119130.0,0.53747716]
[1753704762873,1.36444685,119140.0,119130.0,0.53747716]
[1753704763571,0.69056685,119140.0,119130.0,0.53747716]
[1753704763870,0.1795,119150.0,119130.0,0.83078061]
[1753704764066,0.37936,119150.0,119140.0,0.4816806]
[1753704764272,1.05312,119150.0,119140.0,0.50481956]
[1753704764966,0.37936,119150.0,119140.0,0.50481956]
[1753704765168,0.29516265,119160.0,119140.0,0.63310011]
[1753704765371,0.12586,119160.0,119150.0,0.51764685]
[1753704765565,0.30536,119160.0,119150.0,0.51764685]
[1753704765767,0.3794,119160.0,119150.0,0.20569271]
[1753704767974,0.3794,119160.0,119150.0,0.21069271]
[1753704768174,0.3794,119160.0,119150.0,0.21269271]
[1753704768373,0.3794,119160.0,119150.0,0.54796956]
[1753704768978,0.3794,119160.0,119150.0,0.54237956]
[1753704770073,0.71467685,119160.0,119150.0,0.20710271]
[1753704770372,0.71467685,119160.0,119150.0,0.17484]
[1753704770577,1.0499537,119160.0,119150.0,0.17484]
[1753704771165,1.95220112,119160.0,119150.0,0.17484]
[1753704771370,1.8918596,119160.0,119150.0,0.007]
[1753704771566,1.8918596,119160.0,119150.0,0.17484]
[1753704773175,1.8918596,119160.0,119150.0,0.12484]
[1753704773381,0.54802,119150.0,119140.0,0.335701]
[1753704773579,0.88329685,119150.0,119140.0,0.335701]
[1753704774276,0.71545685,119150.0,119140.0,0.335701]
[1753704774677,0.71545685,119150.0,119140.0,0.336701]
[1753704777375,1.39093685,119150.0,119140.0,0.336701]
[1753704778078,1.39073685,119150.0,119140.0,0.336701]
[1753704778789,1.55857685,119150.0,119140.0,0.336701]
[1753704778982,1.39073685,119150.0,119140.0,0.336701]
[1753704779376,1.55857685,119150.0,119140.0,0.336701]
[1753704780584,1.55857685,119150.0,119140.0,0.31810601]
[1753704781586,1.39073685,119150.0,119140.0,0.31810601]
[1753704781781,1.39053685,119150.0,119140.0,0.57578601]
[1753704782087,0.71645685,119150.0,119140.0,0.64685601]
[1753704782283,0.30958,119150.0,119140.0,0.69354601]
[1753704782489,0.30958,119150.0,119140.0,1.02882286]
[1753704782490,0.001,119150.0,119140.0,1.02882286]
[1753704782681,0.04664,119150.0,119140.0,1.02882286]
[1753704782877,0.001,119150.0,119140.0,1.05126269]
[1753704783985,0.001,119150.0,119140.0,1.72526269]
[1753704784184,0.71645685,119150.0,119140.0,1.0466084]
[1753704784388,0.71645685,119150.0,119140.0,1.2236684]
[1753704784586,0.88429685,119150.0,119140.0,0.3945546]
[1753704784787,0.88429685,119150.0,119140.0,0.1688541]
[1753704786779,0.94187872,119150.0,119140.0,0.1688541]
[1753704788794,0.94187872,119150.0,119140.0,0.19221453]
[1753704791198,0.77403872,119150.0,119140.0,0.19221453]
[1753704791495,0.38118,119150.0,119140.0,0.56765453]
[1753704791693,0.77403872,119150.0,119140.0,0.56765453]
[1753704791893,0.77403872,119150.0,119140.0,0.52096453]
[1753704794591,0.77403872,119150.0,119140.0,0.4976041]
[1753704796000,0.77403872,119150.0,119140.0,0.5442941]
[1753704796195,0.20024,119150.0,119140.0,0.4976041]
[1753704796498,0.04664,119150.0,119140.0,0.5442941]
[1753704796701,0.04664,119150.0,119140.0,0.56765686]
[1753704796896,0.001,119150.0,119140.0,0.96051558]
[1753704797100,4e-05,119160.0,119150.0,0.54328]
[1753704797300,4e-05,119160.0,119150.0,1.24168276]
[1753704797301,0.15502,119160.0,119150.0,1.24168276]
[1753704797600,0.38022,119160.0,119150.0,1.24168276]
[1753704798196,0.77307872,119160.0,119150.0,0.56864276]
[1753704798398,0.38022,119160.0,119150.0,1.24568276]
[1753704798799,0.04568,119160.0,119150.0,1.24568276]
[1753704798998,0.04568,119160.0,119150.0,1.26447573]
[1753704799206,4e-05,119160.0,119150.0,1.65733445]
[1753704799504,0.04564,119170.0,119160.0,0.3111142]
[1753704799704,0.04564,119170.0,119160.0,0.37643236]
[1753704800805,0.04564,119170.0,119160.0,0.37843236]
[1753704801307,0.04564,119170.0,119160.0,0.38646122]
[1753704801604,0.4028107,119180.0,119170.0,0.0786754]
[1753704801806,0.4028107,119180.0,119170.0,0.77982816]
[1753704802200,0.4483407,119180.0,119170.0,0.7564654]
[1753704802707,0.84119942,119180.0,119170.0,0.7564654]
[1753704804504,0.84119942,119180.0,119170.0,0.7574654]
[1753704804800,0.84119942,119180.0,119170.0,0.7584654]